bitfinex/quotes_BTCUSD_20240611
["timestamp","ask_amount","ask_price","bid_price","bid_amount"]
[1718073004003,0.73120836,68099.0,68096.0,0.001]
[1718073004443,0.73120836,68099.0,68091.0,0.009427]
[1718073004444,0.58694,68099.0,68091.0,0.009427]
[1718073005531,0.14431993,68098.0,68091.0,0.009427]
[1718073005737,0.58694,68097.0,68091.0,0.009427]
[1718073005953,0.14431993,68096.0,68091.0,0.009427]
[1718073006069,0.58694,68095.0,68091.0,0.009427]
[1718073006472,0.14556352,68094.0,68085.0,0.04624388]
[1718073006683,0.14556352,68094.0,68073.0,0.1]
[1718073006684,0.2996,68089.0,68077.0,0.43295979]
[1718073006904,0.2996,68089.0,68073.0,0.1]
[1718073006905,0.73125993,68088.0,68073.0,0.1]
[1718073007131,0.73125993,68088.0,68076.0,0.146892]
[1718073007357,0.78083592,68088.0,68076.0,0.146892]
[1718073008254,0.78083592,68088.0,68077.0,0.146891]
[1718073008460,0.78083592,68088.0,68073.0,0.12]
[1718073008672,0.78083592,68088.0,68074.0,0.1]
[1718073008877,0.15584359,68087.0,68074.0,0.1]
[1718073009096,0.1546,68085.0,68068.0,0.1]
[1718073009318,0.1546,68085.0,68061.0,0.01734971]
[1718073009319,0.1546,68083.0,68076.0,0.003]
[1718073009525,0.5,68085.0,68076.0,0.003]
[1718073009526,0.1546,68081.0,68076.0,0.003]
[1718073009747,0.6546,68077.0,68055.0,0.009427]
[1718073009962,0.88585993,68076.0,68074.0,0.003]
[1718073010176,0.00124359,68075.0,68074.0,0.006]
[1718073010412,0.73250352,68075.0,68074.0,0.003]
[1718073010852,0.73125993,68075.0,68060.0,0.1]
[1718073011071,0.14431993,68074.0,68064.0,0.07215996]
[1718073011296,0.14431993,68074.0,68060.0,0.1]
[1718073011297,0.58694,68073.0,68060.0,0.1]
[1718073011604,0.58694,68073.0,68071.0,0.07215996]
[1718073011822,0.58694,68073.0,68072.0,0.09215996]
[1718073012082,0.58694,68073.0,68069.0,0.02]
[1718073012407,0.58694,68073.0,68072.0,0.02]
[1718073013448,0.58694,68073.0,68072.0,0.58671993]
[1718073013661,0.60294,68073.0,68072.0,0.68671993]
[1718073014085,0.60294,68073.0,68072.0,0.83362293]
[1718073014312,0.59694,68073.0,68072.0,0.83362293]
[1718073015149,0.0490278,68088.0,68087.0,0.74817]
[1718073015394,0.0490278,68088.0,68087.0,0.84817]
[1718073015615,0.00124359,68097.0,68087.0,0.1]
[1718073015843,0.58748,68088.0,68087.0,0.12]
[1718073016273,0.58748,68088.0,68087.0,0.22]
[1718073016487,0.58748,68088.0,68087.0,0.003]
[1718073016704,0.58748,68088.0,68087.0,0.106]
[1718073016964,0.58748,68088.0,68087.0,0.003]
[1718073017212,0.58748,68088.0,68081.0,0.12]
[1718073017433,0.58748,68088.0,68087.0,0.003]
[1718073018712,0.58748,68088.0,68086.0,0.146872]
[1718073019137,0.58748,68088.0,68087.0,0.003]
[1718073019378,0.58748,68088.0,68087.0,0.008]
[1718073019591,0.58748,68088.0,68073.0,0.7254]
[1718073019837,0.58748,68088.0,68073.0,0.1469]
[1718073020035,0.58748,68088.0,68086.0,0.008]
[1718073020246,0.14431993,68087.0,68086.0,0.003]
[1718073020467,0.5,68082.0,68067.0,0.146912]
[1718073020676,0.58748,68081.0,68068.0,0.43295979]
[1718073020877,0.73179993,68081.0,68067.0,0.146912]
[1718073021518,0.73179993,68081.0,68061.0,0.146926]
[1718073021519,0.00124359,68080.0,68061.0,0.146926]
[1718073021741,0.70362033,68082.0,68061.0,0.21908596]
[1718073021742,0.73304352,68079.0,68061.0,0.21908596]
[1718073022409,0.73304352,68079.0,68073.0,0.003]
[1718073022630,0.5,68075.0,68073.0,0.003]
[1718073022853,0.73179993,68074.0,68073.0,0.003]
[1718073023077,0.73179993,68074.0,68060.0,0.1]
[1718073023504,0.73179993,68074.0,68068.0,0.004]
[1718073023717,0.73179993,68074.0,68061.0,0.003]
[1718073023925,0.73179993,68074.0,68073.0,0.001]
[1718073023926,0.78175924,68074.0,68073.0,0.001]
[1718073024141,0.73179993,68074.0,68073.0,0.001]
[1718073024375,0.73179993,68074.0,68061.0,0.1]
[1718073025280,0.25904359,68073.0,68060.0,0.003]
[1718073025504,0.5,68068.0,68060.0,0.003]
[1718073025771,0.73304352,68067.0,68060.0,0.007]
[1718073025980,0.73304352,68067.0,68060.0,0.003]
[1718073026189,0.73304352,68067.0,68055.0,0.009427]
[1718073026393,0.73304352,68067.0,68061.0,0.004]
[1718073027072,0.73504352,68067.0,68061.0,0.004]
[1718073027290,0.73304352,68067.0,68055.0,0.009427]
[1718073027739,0.74204352,68067.0,68055.0,0.009427]
[1718073029040,0.20124359,68066.0,68055.0,0.009427]
[1718073029216,0.146925,68062.0,68055.0,0.009427]
[1718073029427,0.73304352,68061.0,68055.0,0.009427]
[1718073030238,0.73304352,68061.0,68060.0,0.000946]
[1718073030687,0.73179993,68061.0,68060.0,0.000946]
[1718073030968,0.58748,68061.0,68060.0,0.000946]
[1718073031682,0.58748,68061.0,68060.0,0.388075]
[1718073031899,0.58748,68061.0,68060.0,0.488075]
[1718073032111,0.58748,68061.0,68060.0,0.588075]
[1718073032808,0.58748,68061.0,68060.0,0.73239493]
[1718073033022,0.58748,68061.0,68060.0,0.810675]
[1718073033237,0.58848,68061.0,68060.0,1.21819493]
[1718073033455,0.58748,68061.0,68060.0,1.31542424]
[1718073033696,0.04948351,68084.0,68080.0,0.02]
[1718073033914,0.04948351,68084.0,68083.0,0.31235996]
[1718073034131,0.420637,68084.0,68083.0,0.3202]
[1718073034821,0.420637,68084.0,68083.0,0.71139893]
[1718073035035,0.420637,68084.0,68083.0,0.51419893]
[1718073035273,0.00086,68087.0,68086.0,0.11]
[1718073035507,0.00086,68087.0,68086.0,1.40337656]
[1718073035721,0.00086,68087.0,68086.0,1.38337656]
[1718073035930,0.58835,68087.0,68086.0,1.38337656]
[1718073036548,0.58835,68087.0,68086.0,0.95099293]
[1718073036768,0.58835,68087.0,68086.0,0.810673]
[1718073036991,0.58835,68087.0,68086.0,0.606673]
[1718073037219,0.58835,68087.0,68083.0,0.003]
[1718073037432,0.58835,68087.0,68086.0,0.22303296]
[1718073037649,0.58835,68087.0,68086.0,0.153873]
[1718073038132,0.58835,68087.0,68086.0,0.150873]
[1718073038389,0.58835,68087.0,68086.0,0.250873]
[1718073038631,0.58835,68087.0,68086.0,0.39519293]
[1718073038883,0.73266993,68087.0,68078.0,0.01734707]
[1718073039119,0.01,68082.0,68078.0,0.01734707]
[1718073039363,0.73305352,68081.0,68078.0,0.01734707]
[1718073040464,0.58749,68081.0,68078.0,0.01734707]
[1718073041322,0.59349,68081.0,68078.0,0.01834707]
[1718073042220,0.59149,68081.0,68078.0,0.01834707]
[1718073042438,0.59149,68081.0,68078.0,0.001]
[1718073042854,0.59149,68081.0,68072.0,0.472]
[1718073043076,0.58949,68081.0,68072.0,0.472]
[1718073043286,0.59549,68081.0,68078.0,0.001]
[1718073043518,0.59149,68081.0,68078.0,0.001]
[1718073043948,0.59749,68081.0,68078.0,0.002]
[1718073044154,0.59149,68081.0,68078.0,0.001]
[1718073046298,0.59749,68081.0,68078.0,0.002]
[1718073048034,0.01,68080.0,68078.0,0.002]
[1718073048205,0.58549,68079.0,68078.0,0.002]
[1718073048970,0.58549,68079.0,68068.0,0.2]
[1718073049180,0.58549,68079.0,68069.0,0.1]
[1718073049386,0.58549,68079.0,68078.0,0.002]
[1718073049830,0.58549,68079.0,68078.0,0.001]
[1718073050629,0.59149,68079.0,68078.0,0.002]
[1718073051011,0.59749,68079.0,68078.0,0.003]
[1718073051422,1.25180993,68079.0,68078.0,0.003]
[1718073051617,1.24180993,68079.0,68078.0,0.003]
[1718073051981,1.25180993,68079.0,68078.0,0.003]
[1718073052297,0.01,68077.0,68064.0,0.34692]
[1718073052497,0.72980993,68076.0,68064.0,0.34692]
[1718073052703,0.00124359,68075.0,68064.0,0.34692]
[1718073052931,0.58549,68074.0,68064.0,0.34692]
[1718073053630,0.58549,68074.0,68064.0,0.34992]
[1718073053836,0.58549,68074.0,68064.0,0.35392]
[1718073054041,0.58549,68074.0,68069.0,0.07215996]
[1718073054418,0.58549,68074.0,68073.0,0.146901]
[1718073054689,0.58549,68074.0,68067.0,0.1]
[1718073055024,0.00124359,68073.0,68068.0,0.146911]
[1718073055398,0.58549,68072.0,68069.0,0.1]
[1718073055957,0.58549,68072.0,68069.0,0.246909]
[1718073056163,0.58549,68072.0,68070.0,0.21906696]
[1718073056363,0.58549,68072.0,68071.0,0.1]
[1718073056935,0.58549,68072.0,68071.0,0.246905]
[1718073058783,0.58649,68072.0,68071.0,0.246905]
[1718073059596,0.58649,68072.0,68071.0,0.146905]
[1718073059804,0.58449,68072.0,68071.0,0.146905]
[1718073060200,0.58349,68072.0,68071.0,0.146905]
[1718073060447,0.58349,68072.0,68066.0,0.146915]
[1718073060673,0.58349,68072.0,68046.0,0.293915]
[1718073060674,0.01,68065.0,68060.0,0.000946]
[1718073060892,0.01,68061.0,68060.0,0.000946]
[1718073061090,0.73780993,68061.0,68060.0,0.000946]
[1718073061327,0.74780993,68061.0,68060.0,0.000946]
[1718073061736,0.72780993,68061.0,68060.0,0.000946]
[1718073061940,0.73780993,68061.0,68060.0,0.000946]
[1718073062107,0.58349,68061.0,68060.0,0.000946]
[1718073062498,0.72780993,68061.0,68060.0,0.000946]
[1718073062705,0.58349,68061.0,68060.0,0.000946]
[1718073062931,0.58349,68061.0,68060.0,0.147875]
[1718073063378,0.58349,68061.0,68060.0,0.004946]
[1718073063379,0.59349,68061.0,68060.0,0.004946]
[1718073063593,1.07070993,68061.0,68060.0,0.004946]
[1718073063775,1.05070993,68061.0,68060.0,0.003946]
[1718073064306,1.05070993,68061.0,68060.0,0.000946]
[1718073064505,1.07070993,68061.0,68060.0,0.000946]
[1718073064714,1.52940993,68061.0,68060.0,0.003946]
[1718073064925,2.11093693,68061.0,68060.0,0.003946]
[1718073065175,2.11093693,68061.0,68060.0,0.007946]
[1718073065385,2.11093693,68061.0,68060.0,0.003946]
[1718073065593,1.82971843,68061.0,68060.0,0.003946]
[1718073065826,1.82971843,68061.0,68060.0,0.004946]
[1718073065827,1.83571843,68061.0,68060.0,0.004946]
[1718073066030,1.82971843,68061.0,68060.0,0.000946]
[1718073066429,1.84971843,68061.0,68060.0,0.002946]
[1718073066634,1.84971843,68061.0,68060.0,0.001946]
[1718073066837,1.94371843,68061.0,68060.0,0.000946]
[1718073067038,1.98071843,68061.0,68060.0,0.001946]
[1718073067316,0.02,68056.0,68042.0,0.009427]
[1718073067536,0.44659143,68056.0,68042.0,0.009427]
[1718073067735,0.3022715,68056.0,68048.0,0.4765]
[1718073068498,0.44659143,68056.0,68043.0,0.367065]
[1718073068696,0.45859143,68056.0,68055.0,0.010427]
[1718073069135,0.3142715,68056.0,68055.0,0.010427]
[1718073069555,0.3142715,68056.0,68055.0,1.25134693]
[1718073069756,0.005,68056.0,68055.0,1.46063628]
[1718073070181,1.2736,68073.0,68066.0,0.1]
[1718073070380,0.04979117,68074.0,68066.0,0.1]
[1718073070381,0.04979117,68074.0,68067.0,0.32838935]
[1718073070694,0.58763,68073.0,68068.0,0.20828935]
[1718073070835,0.58763,68073.0,68069.0,0.10828935]
[1718073071046,0.14431993,68072.0,68069.0,0.10828935]
[1718073071243,0.14431993,68072.0,68055.0,0.786927]
[1718073071244,0.458,68070.0,68057.0,0.146934]
[1718073071442,0.73319352,68069.0,68057.0,0.146934]
[1718073071857,0.01,68067.0,68055.0,0.009427]
[1718073072064,0.73194993,68066.0,68055.0,0.014427]
[1718073072272,0.74194993,68066.0,68055.0,0.014427]
[1718073072444,0.5,68059.0,68055.0,0.009427]
[1718073072683,0.74319352,68058.0,68055.0,0.009427]
[1718073072884,0.74319352,68058.0,68057.0,0.005]
[1718073073096,0.01,68057.0,68055.0,0.009427]
[1718073073297,0.73194993,68056.0,68055.0,0.009427]
[1718073073719,0.73194993,68056.0,68055.0,0.014427]
[1718073074135,0.73194993,68056.0,68055.0,0.018427]
[1718073074349,0.58763,68056.0,68055.0,0.018427]
[1718073074551,0.73194993,68056.0,68055.0,0.018427]
[1718073074753,0.74194993,68056.0,68055.0,0.018427]
[1718073074959,0.73194993,68056.0,68055.0,0.013427]
[1718073075164,0.74194993,68056.0,68055.0,0.013427]
[1718073075368,0.58763,68056.0,68055.0,0.013427]
[1718073075784,0.58763,68056.0,68055.0,0.229527]
[1718073076012,0.58963,68056.0,68055.0,0.229527]
[1718073076218,0.59263,68056.0,68055.0,0.229527]
[1718073076850,0.59263,68056.0,68055.0,0.33571251]
[1718073078204,0.59263,68056.0,68055.0,0.229527]
[1718073078898,0.59263,68056.0,68055.0,0.33376159]
[1718073079315,0.59263,68056.0,68055.0,0.229527]
[1718073080096,0.59263,68056.0,68055.0,1.07362547]
[1718073080381,0.56147806,68056.0,68055.0,1.41250554]
[1718073080785,0.56147806,68056.0,68055.0,1.34034558]
[1718073081220,0.55947806,68056.0,68055.0,1.34034558]
[1718073081644,0.55947806,68056.0,68055.0,1.34534558]
[1718073082079,0.55647806,68056.0,68055.0,0.21244558]
[1718073082281,0.55647806,68056.0,68055.0,0.21744558]
[1718073082484,0.55647806,68056.0,68055.0,0.118427]
[1718073082633,0.55647806,68056.0,68055.0,0.113427]
[1718073082833,0.55647806,68056.0,68055.0,0.114427]
[1718073083038,0.70079799,68056.0,68055.0,0.014427]
[1718073083255,0.70079799,68056.0,68055.0,0.013427]
[1718073083704,1.21079799,68056.0,68055.0,0.009427]
[1718073083887,1.22079799,68056.0,68055.0,0.009427]
[1718073084134,1.22079799,68056.0,68055.0,0.013427]
[1718073084135,1.37539799,68056.0,68055.0,0.013427]
[1718073084354,2.21463499,68056.0,68055.0,0.013427]
[1718073084570,2.21463499,68056.0,68055.0,0.018427]
[1718073085178,0.70379799,68056.0,68055.0,0.018427]
[1718073085381,0.70379799,68056.0,68055.0,0.014427]
[1718073085578,0.70079799,68056.0,68055.0,0.009427]
[1718073085788,0.71079799,68056.0,68055.0,0.012427]
[1718073086019,0.71079799,68056.0,68055.0,0.013427]
[1718073086020,0.72679799,68056.0,68055.0,0.013427]
[1718073086225,0.70679799,68056.0,68055.0,0.012427]
[1718073086432,0.70679799,68056.0,68055.0,0.009427]
[1718073086661,0.70979799,68056.0,68055.0,0.009427]
[1718073087069,0.56947806,68056.0,68055.0,0.009427]
[1718073088547,0.55947806,68056.0,68055.0,0.009427]
[1718073088801,0.55647806,68056.0,68055.0,0.009427]
[1718073089002,0.57447806,68056.0,68055.0,0.011427]
[1718073089319,0.57447806,68056.0,68055.0,1.01651498]
[1718073089320,0.56847806,68056.0,68055.0,1.01651498]
[1718073089523,0.55647806,68056.0,68055.0,1.11551498]
[1718073090102,0.57447806,68056.0,68055.0,0.31661498]
[1718073090332,0.56847806,68056.0,68055.0,0.31561498]
[1718073090519,0.55647806,68056.0,68055.0,0.21961498]
[1718073090928,0.55647806,68056.0,68055.0,0.11961498]
[1718073091063,0.55647806,68056.0,68055.0,0.014427]
[1718073091902,0.55647806,68056.0,68055.0,0.013427]
[1718073092102,0.55647806,68056.0,68055.0,0.31522498]
[1718073092301,0.55647806,68056.0,68055.0,0.32022498]
[1718073092504,0.55647806,68056.0,68055.0,0.11122498]
[1718073092907,0.55647806,68056.0,68055.0,0.016427]
[1718073093091,0.55647806,68056.0,68055.0,0.012427]
[1718073093477,0.55647806,68056.0,68055.0,0.009427]
[1718073093675,0.55647806,68056.0,68055.0,0.013427]
[1718073093806,0.55647806,68056.0,68055.0,0.018427]
[1718073095034,0.55647806,68056.0,68055.0,0.009427]
[1718073095510,0.55647806,68056.0,68055.0,0.014427]
[1718073095887,0.55647806,68056.0,68055.0,0.009427]
[1718073095888,0.71079799,68056.0,68055.0,0.009427]
[1718073096303,0.72079799,68056.0,68055.0,0.011427]
[1718073096978,0.72165799,68056.0,68055.0,0.011427]
[1718073097146,0.72165799,68056.0,68055.0,0.009427]
[1718073098262,1.07625799,68056.0,68055.0,0.009427]
[1718073098878,1.07725799,68056.0,68055.0,0.009427]
[1718073099302,1.09664948,68056.0,68055.0,0.009427]
[1718073099517,1.99324948,68056.0,68055.0,0.009427]
[1718073099718,1.99324948,68056.0,68055.0,0.010427]
[1718073099719,2.00624948,68056.0,68055.0,0.010427]
[1718073099926,2.00024948,68056.0,68055.0,0.010427]
[1718073100135,2.00024948,68056.0,68026.0,0.147]
[1718073100136,0.52,68043.0,68026.0,0.147]
[1718073100343,1.22079799,68043.0,68026.0,0.147]
[1718073100745,1.22079799,68043.0,68027.0,0.1]
[1718073101794,1.20079799,68043.0,68030.0,0.07215996]
[1718073102005,1.20079799,68043.0,68026.0,0.1]
[1718073102217,1.22079799,68043.0,68025.0,0.01730623]
[1718073102426,1.22079799,68043.0,68042.0,0.011427]
[1718073102427,1.23279799,68043.0,68042.0,0.011427]
[1718073102631,1.23879799,68043.0,68042.0,0.011427]
[1718073102843,1.59339799,68043.0,68042.0,0.011427]
[1718073103046,2.48989799,68043.0,68042.0,0.010427]
[1718073103260,2.51289799,68043.0,68042.0,0.010427]
[1718073103497,2.52489799,68043.0,68042.0,0.011427]
[1718073103714,2.62489799,68043.0,68042.0,0.011427]
[1718073104120,2.61289799,68043.0,68042.0,0.010427]
[1718073104325,2.71289799,68043.0,68042.0,2.20314]
[1718073104540,2.74330183,68043.0,68042.0,2.20314]
[1718073104753,2.92699799,68043.0,68042.0,2.20314]
[1718073104976,2.94099799,68043.0,68042.0,2.20414]
[1718073105404,3.01315795,68043.0,68042.0,2.20414]
[1718073105664,2.95499799,68043.0,68042.0,2.20514]
[1718073105867,2.94099799,68043.0,68042.0,2.20414]
[1718073106285,2.95499799,68043.0,68042.0,2.20514]
[1718073106447,2.92699799,68043.0,68042.0,2.20314]
[1718073107071,2.84099799,68043.0,68042.0,2.20314]
[1718073107306,2.62089799,68043.0,68042.0,2.20314]
[1718073108478,2.70089799,68043.0,68042.0,2.20314]
[1718073108685,2.67789799,68043.0,68042.0,2.20314]
[1718073108892,2.69189799,68043.0,68042.0,2.20414]
[1718073109373,2.79189799,68043.0,68042.0,2.20414]
[1718073110113,2.81489799,68043.0,68042.0,2.20414]
[1718073110749,2.81489799,68043.0,68042.0,1.57327571]
[1718073111109,2.10559799,68043.0,68042.0,0.97087571]
[1718073111801,2.10559799,68043.0,68022.0,0.009427]
[1718073111802,1.501593,68030.0,68022.0,0.009427]
[1718073112005,2.154827,68023.0,68022.0,0.009427]
[1718073112217,2.87862499,68023.0,68022.0,0.009427]
[1718073112420,3.11515339,68023.0,68022.0,0.009427]
[1718073113069,3.15405802,68023.0,68022.0,0.009427]
[1718073113275,3.15405802,68023.0,68022.0,0.010427]
[1718073113276,3.12915339,68023.0,68022.0,0.010427]
[1718073113477,3.02915339,68023.0,68022.0,0.010427]
[1718073113902,3.2778165,68023.0,68022.0,0.011427]
[1718073114053,3.1638165,68023.0,68022.0,0.010427]
[1718073114684,3.02915339,68023.0,68022.0,0.010427]
[1718073115250,0.867037,68010.0,68009.0,0.009438]
[1718073115448,1.56783499,68010.0,68009.0,0.009438]
[1718073115657,1.92243499,68010.0,68009.0,0.009438]
[1718073115857,1.94543499,68010.0,68009.0,0.009438]
[1718073116077,2.14543499,68010.0,68009.0,0.009438]
[1718073116279,2.68148005,68010.0,68009.0,0.009438]
[1718073116489,2.69548005,68010.0,68009.0,0.010438]
[1718073116921,2.69548005,68010.0,68009.0,0.009438]
[1718073117123,2.65653499,68010.0,68009.0,0.009438]
[1718073117332,2.65653499,68010.0,68009.0,0.010438]
[1718073118406,3.09492892,68010.0,68009.0,0.010438]
[1718073118626,3.08092892,68010.0,68009.0,0.009438]
[1718073118828,3.09492892,68010.0,68009.0,0.009438]
[1718073119027,2.93660899,68010.0,68009.0,0.009438]
[1718073119473,2.93660899,68010.0,68009.0,0.010438]
[1718073119474,2.96460899,68010.0,68009.0,0.010438]
[1718073120006,2.93660899,68010.0,68009.0,0.011438]
[1718073120215,2.95060899,68010.0,68009.0,0.011438]
[1718073120415,3.25868299,68010.0,68009.0,0.012438]
[1718073120633,3.4420109,68010.0,68009.0,0.012438]
[1718073121039,3.48092008,68010.0,68009.0,0.012438]
[1718073121252,1.309807,68008.0,68007.0,1e-06]
[1718073121478,1.309807,68008.0,67991.0,0.009438]
[1718073121479,1.541156,68003.0,67991.0,0.009438]
[1718073121700,1.541156,68003.0,67995.0,0.00814689]
[1718073121701,1.501667,67996.0,67995.0,0.00814689]
[1718073121941,2.89073299,67996.0,67995.0,0.00814689]
[1718073122148,0.915828,67992.0,67991.0,0.009438]
[1718073122352,2.4108502,67992.0,67991.0,0.009438]
[1718073122559,2.57285818,67992.0,67991.0,0.009438]
[1718073122764,2.71717811,67992.0,67991.0,0.00696151]
[1718073123603,2.25802599,67992.0,67991.0,0.00696151]
[1718073123813,1.21647399,67992.0,67991.0,0.00696151]
[1718073124011,2.37007399,67992.0,67991.0,0.00696151]
[1718073124444,2.06839799,67992.0,67991.0,0.46386151]
[1718073124658,0.514,67996.0,67991.0,0.56386151]
[1718073124659,1.2736,67993.0,67991.0,0.56386151]
[1718073124874,0.04906444,68005.0,68000.0,0.1]
[1718073124875,1.2736,68002.0,68000.0,0.1]
[1718073125111,1.2736,68002.0,68001.0,0.56518848]
[1718073125309,1.2736,68002.0,68001.0,0.07695848]
[1718073125536,1.2736,68002.0,68001.0,0.07215996]
[1718073125873,0.441185,68002.0,68001.0,0.44657989]
[1718073126042,0.43295979,68038.0,68001.0,0.45957989]
[1718073126203,0.04945388,68025.0,68022.0,0.147009]
[1718073126412,0.5,68051.0,68026.0,0.147001]
[1718073126614,0.02,68050.0,68043.0,0.2201]
[1718073126817,0.02,68046.0,68043.0,0.2201]
[1718073127180,0.27301996,68056.0,68023.0,0.14431993]
[1718073127181,0.5879,68045.0,68023.0,0.14431993]
[1718073127402,0.5879,68045.0,68041.0,0.36707]
[1718073128049,0.5879,68045.0,68043.0,0.3217]
[1718073128265,0.5879,68045.0,68044.0,0.1]
[1718073128484,0.5879,68045.0,68044.0,0.5502]
[1718073129350,0.00086,68056.0,68050.0,0.146948]
[1718073129523,0.00086,68056.0,68055.0,0.677]
[1718073130015,0.58862,68056.0,68055.0,0.9778]
[1718073131087,0.58962,68056.0,68055.0,0.9778]
[1718073131318,0.60962,68056.0,68055.0,0.7577]
[1718073131787,0.02,68050.0,68047.0,0.7623]
[1718073132009,0.02,68048.0,68047.0,0.7623]
[1718073132275,0.58776,68048.0,68047.0,0.7623]
[1718073133207,0.58776,68048.0,68047.0,0.7683]
[1718073133876,0.58776,68048.0,68047.0,0.8623]
[1718073134100,0.58876,68048.0,68047.0,0.8683]
[1718073135179,0.58976,68048.0,68047.0,0.8763]
[1718073136705,0.58976,68048.0,68047.0,0.87622719]
[1718073138675,0.58976,68048.0,68047.0,1.02054712]
[1718073139701,0.00086,68056.0,68048.0,0.8144]
[1718073139878,0.00086,68056.0,68055.0,0.2201]
[1718073140077,0.58862,68056.0,68055.0,0.2201]
[1718073140276,0.58862,68056.0,68055.0,0.146939]
[1718073140719,0.58862,68056.0,68055.0,1.281439]
[1718073141281,0.58862,68056.0,68055.0,1.061339]
[1718073141282,0.60862,68056.0,68055.0,1.061339]
[1718073141413,0.60862,68056.0,68055.0,0.589]
[1718073141826,0.02,68049.0,68048.0,0.489]
[1718073142029,0.58776,68049.0,68042.0,0.04935151]
[1718073142209,0.58776,68049.0,68048.0,0.8204]
[1718073142438,0.58776,68049.0,68048.0,0.96471993]
[1718073142650,0.58776,68049.0,68048.0,0.95871993]
[1718073143076,0.58776,68049.0,68048.0,1.06471993]
[1718073143475,0.00086,68056.0,68055.0,0.146939]
[1718073143704,0.00086,68056.0,68055.0,1.35915893]
[1718073143907,0.58862,68056.0,68055.0,1.35915893]
[1718073144109,0.57192451,68056.0,68055.0,1.38215893]
[1718073144324,0.57192451,68056.0,68055.0,1.35915893]
[1718073145903,0.57192451,68056.0,68055.0,1.36515893]
[1718073146118,0.57292451,68056.0,68055.0,1.37215893]
[1718073146331,0.57292451,68056.0,68055.0,1.227839]
[1718073146542,0.57292451,68056.0,68055.0,1.007739]
[1718073146758,0.59292451,68056.0,68055.0,0.748939]
[1718073146971,0.59292451,68056.0,68055.0,0.259939]
[1718073147186,0.57292451,68056.0,68055.0,0.259939]
[1718073147404,0.59292451,68056.0,68055.0,0.259939]
[1718073147789,0.59292451,68056.0,68055.0,0.013]
[1718073148271,0.59192451,68056.0,68055.0,0.006]
[1718073148767,0.73624444,68056.0,68055.0,0.012]
[1718073148987,0.73624444,68056.0,68055.0,0.006]
[1718073149205,0.73624444,68056.0,68048.0,2.0]
[1718073149438,0.02,68049.0,68048.0,2.0]
[1718073149661,0.57192451,68049.0,68048.0,2.0]
[1718073150079,0.57192451,68049.0,68048.0,2.29127293]
[1718073150285,0.57192451,68049.0,68048.0,2.146953]
[1718073150498,0.59192451,68049.0,68048.0,2.146953]
[1718073151131,0.59192451,68049.0,68048.0,2.0]
[1718073152301,0.59192451,68049.0,68048.0,2.006]
[1718073152533,0.59192451,68049.0,68048.0,2.013]
[1718073152748,0.59192451,68049.0,68048.0,2.006]
[1718073152961,0.59192451,68049.0,68048.0,2.018]
[1718073153179,0.59292451,68049.0,68048.0,2.031]
[1718073153390,0.59192451,68049.0,68048.0,2.024]
[1718073153823,0.59192451,68049.0,68048.0,2.022]
[1718073154231,0.59192451,68049.0,68048.0,2.024]
[1718073154932,1.36552451,68049.0,68048.0,2.024]
[1718073155799,1.36552451,68049.0,68048.0,2.022]
[1718073156042,1.36552451,68049.0,68048.0,2.018]
[1718073156257,1.36852451,68049.0,68048.0,2.018]
[1718073156500,1.36952451,68049.0,68048.0,2.018]
[1718073156697,1.36652451,68049.0,68048.0,2.018]
[1718073157057,1.36852451,68049.0,68048.0,2.018]
[1718073157414,2.01884444,68049.0,68048.0,2.019]
[1718073157668,2.02584444,68049.0,68048.0,2.019]
[1718073159102,2.02784444,68049.0,68048.0,2.019]
[1718073159485,2.02384444,68049.0,68048.0,2.02]
[1718073159683,2.00984444,68049.0,68048.0,2.018]
[1718073160082,0.74524444,68049.0,68048.0,2.019]
[1718073160309,0.75524444,68049.0,68048.0,2.02]
[1718073161584,0.75524444,68049.0,68048.0,2.020946]
[1718073163199,0.90219644,68049.0,68048.0,2.020946]
[1718073164794,1.13299581,68049.0,68048.0,2.020946]
[1718073165069,1.56599581,68049.0,68048.0,2.020946]
[1718073165800,1.56599581,68049.0,68048.0,1.687646]
[1718073165995,2.24090081,68049.0,68048.0,1.27645449]
[1718073166195,0.01,68019.0,68018.0,0.04993976]
[1718073166447,0.73624444,68019.0,68018.0,0.04993976]
[1718073166685,0.02,68013.0,68006.0,0.4852]
[1718073166897,0.59192451,68013.0,68006.0,0.4852]
[1718073167932,0.59192451,68013.0,68005.0,0.04929593]
[1718073169478,0.59292451,68013.0,68005.0,0.04929593]
[1718073170318,0.59592451,68013.0,68005.0,0.04929593]
[1718073172469,0.59192451,68013.0,68005.0,0.04929593]
[1718073172690,0.59692451,68013.0,68005.0,0.04929593]
[1718073172925,0.59492451,68013.0,68005.0,0.04929593]
[1718073173439,0.73824444,68013.0,68005.0,0.04929593]
[1718073173641,1.68777444,68013.0,68005.0,0.04929593]
[1718073173845,1.68777444,68013.0,67995.0,0.4951]
[1718073173846,1.7499344,68013.0,67995.0,0.4951]
[1718073174058,0.02,67996.0,67995.0,0.4951]
[1718073174265,0.59192451,67996.0,67995.0,0.0498043]
[1718073174471,0.59192451,67996.0,67993.0,0.3055]
[1718073174689,0.02,67992.0,67990.0,0.4802]
[1718073174912,0.59192451,67992.0,67987.0,0.0136205]
[1718073175385,0.73900051,67992.0,67987.0,0.0136205]
[1718073176547,0.74100051,67992.0,67991.0,0.01996151]
[1718073177021,0.73900051,67992.0,67991.0,0.00696151]
[1718073177249,0.59492451,67992.0,67991.0,0.00696151]
[1718073177480,0.59892451,67992.0,67991.0,0.00696151]
[1718073178644,0.59592451,67992.0,67991.0,0.00696151]
[1718073178880,0.59192451,67992.0,67991.0,0.00696151]
[1718073179105,0.59192451,67992.0,67991.0,0.00996151]
[1718073179345,0.57192451,67992.0,67991.0,0.00796151]
[1718073179551,0.57192451,67992.0,67991.0,0.92623951]
[1718073179757,0.57492451,67992.0,67991.0,1.02623951]
[1718073179959,0.57592451,67992.0,67991.0,1.02623951]